Cogmind - Beta 16 @@@ ROGUE MODE // 2026.01.01 @ 17:06:58 Player: BlobtheGreat Result: Core destroyed Performance ------------- Evolutions (0) 0 Regions Visited (2) 400 Robots Destroyed (18) 90 Value Destroyed (226) 226 Prototype IDs (0) 0 Alien Tech Used (0) 0 Bonus (0) 0 TOTAL SCORE: 716 Bonus ------- None Cogmind --------- Core Integrity 0/250 Matter 292/300 Energy 100/100 System Corruption 8% Temperature Cool (0) Movement Core (50) Location -10/Mines Parts ------- > --- POWER (1) -------- (None) > --- PROPULSION (2) --- (None) > --- UTILITY (2) ------ (None) > --- WEAPON (2) ------- (None) > --- INVENTORY (5) ---- Ion Engine Aluminum Leg Small Storage Unit Seismic Detector Light Cannon Peak State ------------ > --- POWER ------------ Light Ion Engine > --- PROPULSION ------- Aluminum Leg Aluminum Leg > --- UTILITY ---------- Large Storage Unit Seismic Detector > --- WEAPON ----------- Assault Rifle Assault Rifle > --- INVENTORY -------- Ion Engine Aluminum Leg Aluminum Leg Aluminum Leg Small Storage Unit Seismic Detector Medium Laser Light Cannon Light Cannon Light Cannon [Rating: 8] Favorites ----------- Power Light Ion Engine Engine Light Ion Engine Propulsion Aluminum Leg Leg Aluminum Leg Utility Seismic Detector Device Seismic Detector Storage Large Storage Unit Weapon Assault Rifle Ballistic Gun Assault Rifle Build | -11 -10 -10 ------- Run | Yrd Mat Min Slots Evolved . | . . . Power . | . . . Propulsion . | . . . Utility . | . . . Weapon . | . . . Parts Attached 9 | 7 2 . Power 1 | 1 . . Engine 1 | 1 . . Core . | . . . Reactor . | . . . Propulsion 3 | 2 1 . Treads . | . . . Leg 3 | 2 1 . Wheel . | . . . Hover . | . . . Flight . | . . . Utility 3 | 2 1 . Device 1 | 1 . . Storage 2 | 1 1 . Processor . | . . . Hackware . | . . . Protection . | . . . Artifact . | . . . Weapon 2 | 2 . . Energy Gun . | . . . Energy Cannon . | . . . Ballistic Gun 2 | 2 . . Ballistic Cannon . | . . . Launcher . | . . . Special Weapon . | . . . Impact Weapon . | . . . Slashing Weapon . | . . . Piercing Weapon . | . . . Special Melee Weapon . | . . . Unidentified Prototypes . | . . . Parts Lost . | . . . Power . | . . . Propulsion . | . . . Utility . | . . . Weapon . | . . . Highest Loss Streak . | . . . To Critical Strikes . | . . . Average Backups 8 | 1 7 14 Power . | . 1 1 Propulsion 1 | . 1 2 Utility 2 | . 2 3 Weapon 3 | . 2 6 Tool/Special . | . . . Unused Backups 13 | . . 13 Power 1 | . . 1 Propulsion 2 | . . 2 Utility 3 | . . 3 Weapon 7 | . . 7 Tool/Special . | . . . Average Slot Usage (%) 99 | . 100 96 Engine 13 | . 14 13 Leg 27 | . 28 27 Device 13 | . 14 13 Storage 13 | . 14 13 Ballistic Gun 27 | . 28 27 Peak Build Rating 8 | 7 8 8 Average Rating 7 | 5 7 7 On Entrance 5 | . 7 8 Avg Prop Armor Cover (%) . | . . . Naked Turns 12 | . . 12 Heaviest Build 28 | 13 28 28 Greatest Support 20 | 20 20 20 Greatest Overweight (x) 1 | . 1 1 Average Overweight (x) . | . . 1 Largest Inventory Capacity 15 | 8 15 15 Average Capacity 13 | 7 13 14 Most Carried 15 | 3 15 15 Average Carried 8 | 1 7 14 Final Capacity 15 | 8 15 5 Final Carried 15 | 3 15 5 Class Distribution -------------------- 100% | Mutant Dominant Class ---------------- Mutant | -10/Materials Mutant | -10/Mines Resources | -11 -10 -10 ----------- Run | Yrd Mat Min Matter Collected 635 | 341 237 57 Remotely . | . . . Salvage Created 438 | 117 321 . Parts 36 | 11 25 . Haulers Intercepted 1 | . 1 . Recyclers Shooed . | . . . Parts Field Recycled . | . . . Retrieved Matter . | . . . Parts Self-Destructed . | . . . Prevented . | . . . Parts Restored . | . . . Kills | -11 -10 -10 ------- Run | Yrd Mat Min Combat Hostiles Destroyed 12 | . 12 . Guns 12 | . 12 . Classes Destroyed 6 | 2 4 . Builder 1 | . 1 . Tunneler 3 | 3 . . Hauler 1 | . 1 . Recycler 1 | 1 . . Swarmer 9 | . 9 . Grunt 3 | . 3 . Best Kill Streak 5 | 4 5 . Combat Bots Only 4 | . 4 . Max Kills in Single Turn 2 | 1 2 . Gunslinging . | . . . Exploded . | . . . Melee . | . . . Uniques/NPCs Destroyed . | . . . Combat | -11 -10 -10 -------- Run | Yrd Mat Min Hostile Shots Fired 36 | . 36 . Missed 9 | . 9 . Hits 27 | . 27 . Projectile 27 | . 27 . Damage Taken 401 | . 236 165 Core 255 | . 90 165 Absorbed by Shields . | . . . Core Remaining (%) 100 | 100 . . Volleys Fired 47 | 12 35 . Largest 2 | 2 2 . Hottest 40 | 40 40 . Shots Fired 94 | 24 70 . Gun 94 | 24 70 . Cannon . | . . . Launcher . | . . . Special . | . . . Kinetic 94 | 24 70 . Thermal . | . . . Explosive . | . . . Electromagnetic . | . . . Robot Hit Streak 9 | 5 9 . Robot Miss Streak 4 | 3 4 . Penetration Max . | . . . Secondary Targets . | . . . Shots Hit Robots 59 | 16 43 . Core Hits 25 | 5 20 . Critical Kills 1 | . 1 . Critical Parts Destroyed . | . . . Critical Strikes 1 | . 1 . Destroy 1 | . 1 . Melee Attacks . | . . . Impact . | . . . Slashing . | . . . Piercing . | . . . Sneak Attacks . | . . . Combat Hostiles . | . . . Follow-up Attacks . | . . . Damage Inflicted 870 | 206 570 94 Guns 771 | 206 565 . Cannons . | . . . Explosions . | . . . Melee . | . . . Ramming 99 | . 5 94 Kinetic 771 | 206 565 . Thermal . | . . . Explosive . | . . . Electromagnetic . | . . . Impact . | . . . Slashing . | . . . Piercing . | . . . Highest Corruption 8 | . 1 8 Average Corruption 1 | . 1 1 Corruption Purged . | . . . Corruption Blocked . | . . . Effects 8 | . 6 2 Message Errors 2 | . 1 1 Matter Fused 3 | . 2 1 Energy Discharges 1 | . 1 . Data Loss (minor) 2 | . 2 . Overload Shots . | . . . Overflow Damage . | . . . Projectiles . | . . . Explosions . | . . . Melee . | . . . Knockbacks . | . . . Impact . | . . . Kinetic . | . . . Secondary . | . . . Self-Inflicted Damage 90 | . . 90 Shots . | . . . Rammed . | . . . Targets Rammed 3 | . 2 1 Kicked 3 | . 2 1 Crushed . | . . . Highest Temperature . | . . . Average Temperature . | . . . Received Heat Transfer 54 | . 54 . Siege Activations . | . . . Martial Activations . | . . . Shielding Activations . | . . . Robots Disrupted . | . . . Combat Hostiles . | . . . Robots Corrupted . | . . . Combat Hostiles . | . . . Parts Fried . | . . . Impact Corruptions . | . . . Robots Melted . | . . . Combat Hostiles . | . . . Parts Melted . | . . . Heat Transferred . | . . . Parts Sabotaged . | . . . Parts Stolen . | . . . Parts Stripped . | . . . Power Chain Reactions . | . . . Alert | -11 -10 -10 ------- Run | Yrd Mat Min Maximum Alert Level . | . . . Low Security (%) 100 | 100 100 100 Level 1 . | . . . Level 2 . | . . . Level 3 . | . . . Level 4 . | . . . Level 5 . | . . . High Security . | . . . Max Security . | . . . Peak Influence 139 | 10 139 . Initial . | . . . Average 43 | . 66 . Influence Increases 333 | 20 313 . Destroy 0b10 Robot/C 240 | . 240 . Destroy 0b10 Robot/NC 30 | 20 10 . Destroy Leader 42 | . 42 . Successful Hack 6 | . 6 . Lose Combat Pursuer 15 | . 15 . Influence Decreases 333 | 20 313 . Time Decay 333 | 20 313 . Squads Dispatched 2 | . 2 . Investigation 1 | . 1 . Extermination . | . . . Reinforcement 1 | . 1 . Assault . | . . . Garrison . | . . . Intercept . | . . . Searches Triggered . | . . . Construction Impeded . | . . . Haulers Reinforced . | . . . Active Scanning Responses . | . . . Cargo Convoy Interrupts . | . . . Stealth | -11 -10 -10 --------- Run | Yrd Mat Min Distress Signals 2 | . 2 . Communications Jammed . | . . . Distress Signals . | . . . Times Spotted 20 | . 20 . Peak Tracking Total 4 | . 4 . Tactical Retreats 1 | . 1 . Traps | -11 -10 -10 ------- Run | Yrd Mat Min Traps Triggered 3 | . 3 . Indirectly . | . . . Trap Hack Attempts . | . . . Triggered . | . . . Disarmed . | . . . Reprogrammed . | . . . Reused . | . . . Traps Extracted . | . . . Installed . | . . . Triggered . | . . . Machines | -11 -10 -10 ---------- Run | Yrd Mat Min Machines Disabled . | . . . Max in Single Turn . | . . . Machines Repaired . | . . . Machines Dismantled . | . . . Machines Sabotaged . | . . . Overloaded Fab Kills . | . . . Hacking | -11 -10 -10 --------- Run | Yrd Mat Min Machines Accessed 4 | . 4 . Terminals 4 | . 4 . Fabricators . | . . . Repair Stations . | . . . Recycling Units . | . . . Scanalyzers . | . . . Garrison Access . | . . . Total Hacks 12 | . 12 . Successful 3 | . 3 . Failed 9 | . 9 . Catastrophic 1 | . 1 . Database Lockouts . | . . . Manual 9 | . 9 . Terminals 12 | . 12 . Fabricators . | . . . Repair Stations . | . . . Recycling Units . | . . . Scanalyzers . | . . . Garrison Access . | . . . Terminal Hacks 3 | . 3 . Robot Analysis 2 | . 2 . Terminal Index 1 | . 1 . Fabricator Hacks . | . . . Repair Station Hacks . | . . . Recycling Unit Hacks . | . . . Scanalyzer . | . . . Garrison Access Hacks . | . . . Unauthorized Hacks . | . . . Terminals . | . . . Fabricators . | . . . Repair Stations . | . . . Recycling Units . | . . . Scanalyzers . | . . . Garrison Access . | . . . Data Cores Recovered . | . . . Used . | . . . Hacking Detections 4 | . 4 . Full Trace Events 1 | . 1 . Feedback Events . | . . . Feedback Blocked . | . . . Robot Schematics Acquired . | . . . Robots Built . | . . . Authchips . | . . . Time . | . . . Total Robot Build Rating . | . . . Part Schematics Acquired . | . . . Parts Built . | . . . Authchips . | . . . Time . | . . . Total Part Build Rating . | . . . Part Studies Acquired . | . . . Parts Repaired . | . . . Time . | . . . Parts Recycled . | . . . Recycled Matter . | . . . Retrieved Matter . | . . . Retrieved Components . | . . . Parts Scanalyzed . | . . . Part Schematics Acquired . | . . . Parts Damaged . | . . . Bothacking | -11 -10 -10 ------------ Run | Yrd Mat Min Used RIF Installer . | . . . Robots Hacked . | . . . Non-combat . | . . . Combat . | . . . Robot Hacks Applied . | . . . Relay Couplers Released . | . . . Fabnet Peak Effective % . | . . . Robots Rewired . | . . . Allies Hacked . | . . . Hacks Repelled . | . . . Allies | -11 -10 -10 -------- Run | Yrd Mat Min Total Allies . | . . . Largest Group . | . . . Highest-Rated Group . | . . . Highest-Rated Ally . | . . . Total Orders . | . . . Ally Attacks . | . . . Total Damage . | . . . Kills . | . . . Allies Corrupted . | . . . Allies Melted . | . . . Intel | -11 -10 -10 ------- Run | Yrd Mat Min Active Infowar (turns) 1214 | 38 862 314 Seismic 1214 | 38 862 314 Robot Analysis Total 2 | . 2 . Derelict Logs Recovered . | . . . Drone Launches . | . . . Drone Recoveries . | . . . Exploration | -11 -10 -10 ------------- Run | Yrd Mat Min Turns Passed 1314 | 126 862 326 Spaces Moved 659 | 68 427 164 Core 6 | 6 . . Treads . | . . . Legs 653 | 62 427 164 Wheels . | . . . Hover . | . . . Flight . | . . . Fastest Speed 50 | 50 120 190 Average Speed 168 | 113 169 190 Slowest Speed 190 | 120 190 190 Overloaded Moves . | . . . Propulsion Burnouts . | . . . Robots Hopped . | . . . Potential Cave-ins . | . . . Cave-ins Triggered . | . . . Exploration Rate (%) 40 | 5 82 34 Regions Visited 2 Branch Regions 1 Pre-discovered Areas 1 | . . 1 Known Exits Taken . | . . . Unknown Exits Taken 2 | 1 1 . Scrap Searched 1 | . . 1 Spaces Dug . | . . . Terrain Destroyed . | . . . Melee . | . . . Projectile . | . . . AOE . | . . . Terrain Rammed 13 | . . 13 Walls Destroyed . | . . . Machines Disabled . | . . . Actions | -11 -10 -10 --------- Run | Yrd Mat Min Total 758 | 89 492 177 Wait 16 | . 16 . Move 657 | 67 426 164 Hop . | . . . Pick Up 13 | 3 10 . Fast Attach 8 | 7 1 . Attach . | . . . Detach . | . . . Swap 2 | . 2 . Drop . | . . . Fire 47 | 12 35 . Melee . | . . . Ram 12 | . . 12 Kick 3 | . 2 1 Crush . | . . . Escape Stasis . | . . . Rewire . | . . . Trap . | . . . Miscellaneous . | . . . Route ------- -11/Scrapyard -10/Materials (discovered 3 exits: [*Mat x2] / [*Min]) -10/Mines (discovered 2 exits: [*Mat x2]) History --------- Turn | Location | Event 44 | -11/Scrapyard | Discovered new exit (range 15) 127 | -11/Scrapyard | Entered Materials 179 | -10/Materials | Discovered new exit (range 6) 260 | -10/Materials | Discovered new exit (range 12) 312 | -10/Materials | Build established: Mutant 493 | -10/Materials | Discovered new exit (range 13) 989 | -10/Materials | Entered Mines 1011 | -10/Mines | Met a Derelict bent on vengeance 1254 | -10/Mines | Discovered new exit (range 4) 1256 | -10/Mines | Learned location of Storage (-7) 1271 | -10/Mines | Discovered new exit (range 10) 1303 | -10/Mines | Released all parts (7) 1307 | -10/Mines | Core integrity fell below 50% 1312 | -10/Mines | Core integrity fell below 20% 1315 | -10/Mines | Core destroyed Last Messages --------------- 01306_ Destabilizing: Core damaged (-12). 01307_ Slammed into Wall. 01307_ Destabilizing: System corrupted (+2). 01308_ Slammed into Wall. 01308_ Destabilizing: Core damaged (-10). 01308_ Destabilizing: System corrupted (+2). 01309_ Slammed into Wall. 01309_ Destabilizing: Core damaged (-5). 01310_ Slammed into Wall. 01310_ Destabilizing: Core damaged (-10). 01311_ Slammed into Wall. 01311_ Destabilizing: Core damaged (-7). 01312_ Slammed into Wall. 01313_ Destabilizing: Core damaged (-12). 01313_ Destabilizing: Core damaged (-7). 01314_ Slammed into Wall. 01314_ Destabilizing: System corrupted (+1). 01314_ Destabilizing: Core damaged (-7). 01315_ Slammed into Wall. Map ----- +----------------------------------------------------+ | ??# #??????????# #??? | | ??######### #???######## #??? | | ??????????# #???# #??? | | ###???????# !#???# #########??? | | #######! #???# #??????????? | | ![#???# #??????????? | | #???# #?????####?? | | ### ##???# #??### ##? | | ??#### ###?# #??# #? | | ?????## ### #??# !!! #? | | ??????#### ## ##?# ! ! ?? | | ?????????## #?# ! ! ?? | | ??????????# #?# !!! ??? | | ??????????# ##?# ??? | | ??????????# ##??# #??? | | ???????#### ###???# #??? | | ???????# #?????# < ##?? | | ???????# ## ##?????# #?? | | ?????? ??# ##????## #?? | | ????# #???## #?????# ###?? | | ????#??????### #?????# #???? | | ?????????????## ##?????#*#???? | | ??????????????## #??????#]#???? | | ???????????????# #####??#!#???? | | ???????????????# #??#]#???? | | ???????????????##### #??#@#???? | | ???????????????????# ####!###?? | | ???????????????????# # ]]= #?? | | ???????????????????# # ][[ #?? | | ?????????????####### # [ #?? | | ????????????# #?? | | ???????????# #### < #?? | | ???????????# ? ????# #?? | | ????????????# ?????########?? | | ????????????##????????????????? | | ??????????????????????????????? | | ??????????????????????????????? | | ??????????????????????????????? | | ??????????????????????????????? | | ??????????????????????????????? | | ??????????????????????????????? | | ??????????????????????????????? | | ??????????????????????????????? | | | | | | | | | | | | | | | +----------------------------------------------------+ Best States ------------- Heat Dissipation 25 Energy Generation 10 Energy Capacity 125 Matter Stores 300 Matter Capacity 300 Sight Range 16 Terrain Scan Density 10 Evasion (%) 55 Item Schematics ----------------- None Robot Schematics ------------------ None Fabricated ------------ Nothing Repaired ---------- Nothing Studied --------- None Alien Tech Used ----------------- None Achievements -------------- None Challenges ------------ None Game ------ Seed AlphaHoverGenerator Manual? 0 Play Time 00:05:38 Cumulative 241.8 hours Start 2026.01.01 @ 17:01:20 End 2026.01.01 @ 17:06:58 Sessions 1 Manual Loads 0 Difficulty Rogue Special Mode None Game No. 226 Rogue 226 Adventurer 0 Explorer 0 Win Type - Total 11 Types 8/0/2/0/0/0/0/0/0/1 Lore% 87 Gallery% 77 Achievement% 61 Wizard Run 0 Options --------- Layout 1 ASCII 0 Keyboard 1 Movement Arrows Keybinds 0 Fullscreen 1 Font 24/Smallcaps Map View 50x40 Zoom Use 0% Tactical HUD 1 Map Filters NONE Filters NONE Steam 1 RUN: 868040de-2882-4fd6-a7f9-d021f56a61eb